bitfinex/quotes_ETHUSD_20210701
["timestamp","ask_amount","ask_price","bid_price","bid_amount"]
[1625125531277,7.12702,2159.3,2159.0,0.00618958]
[1625125531377,12.34382598,2159.3,2159.0,0.00618958]
[1625125532132,7.12702,2159.3,2159.0,0.00618958]
[1625125532286,7.08702,2159.3,2159.0,0.00618958]
[1625125532377,12.30826206,2159.3,2159.0,0.00618958]
[1625125532479,7.08702,2159.3,2159.0,0.00618958]
[1625125532680,12.37452931,2159.3,2159.0,0.00618958]
[1625125532878,22.85452931,2159.3,2159.2,4.364e-05]
[1625125533278,12.45452931,2159.3,2159.2,4.364e-05]
[1625125533379,7.16702,2159.3,2159.2,4.364e-05]
[1625125533482,12.56801825,2159.3,2159.2,4.364e-05]
[1625125533933,20.56801825,2159.3,2159.2,4.364e-05]
[1625125534235,32.46801825,2159.3,2159.2,4.364e-05]
[1625125534637,32.46801825,2159.3,2159.2,0.90004364]
[1625125534835,20.56801825,2159.3,2159.2,0.90004364]
[1625125535239,5.01,2159.1,2158.8,0.02822874]
[1625125535344,9.7723,2159.1,2158.8,0.02822874]
[1625125535439,5.81358236,2159.0,2158.8,0.02822874]
[1625125535538,10.82358236,2159.0,2158.8,0.02822874]
[1625125535636,19.4174431,2158.9,2158.8,0.02822874]
[1625125535736,10.4007769,2158.9,2158.8,0.02822874]
[1625125535837,10.5407769,2158.9,2158.8,0.02822874]
[1625125535940,5.15,2158.9,2158.8,0.02822874]
[1625125536139,10.38075883,2158.9,2158.8,0.02822874]
[1625125536639,5.15,2158.9,2158.8,0.02822874]
[1625125536833,18.4717,2159.1,2158.8,0.02822874]
[1625125536834,3.47408,2159.1,2158.8,0.02822874]
[1625125536947,5.15618958,2159.2,2158.8,0.02822874]
[1625125537031,0.00618958,2159.2,2158.8,0.02822874]
[1625125541376,5.01,2159.1,2158.8,0.02822874]
[1625125543083,4.5972,2159.1,2158.8,0.02822874]
[1625125544024,4.5972,2159.1,2158.8,0.92822874]
[1625125544728,4.58080055,2159.1,2158.8,0.92822874]
[1625125544831,0.00618958,2159.2,2158.8,0.92822874]
[1625125545429,0.00618958,2159.2,2158.9,0.12]
[1625125545977,0.00618958,2159.2,2158.8,0.92822874]
[1625125546780,5.01618958,2159.2,2158.8,0.92822874]
[1625125546882,0.00618958,2159.2,2158.8,0.92822874]
[1625125546981,5.01,2159.0,2158.8,0.92822874]
[1625125547184,0.00618958,2159.2,2158.8,0.92822874]
[1625125547282,0.14618958,2159.2,2158.8,0.92822874]
[1625125547385,5.15618958,2159.2,2158.8,0.92822874]
[1625125547685,0.06,2159.1,2158.8,0.92822874]
[1625125547783,3.3221,2159.1,2158.8,0.92822874]
[1625125547887,22.9,2158.8,2158.4,6.50529693]
[1625125548133,0.08,2158.7,2158.4,6.50529693]
[1625125548231,2.59084034,2158.8,2158.4,6.50529693]
[1625125548332,0.14,2158.7,2158.4,6.50529693]
[1625125548437,2.59084034,2158.8,2158.4,6.50529693]
[1625125548632,2.59084034,2158.8,2158.5,0.1]
[1625125549037,2.59084034,2158.8,2158.4,6.50529693]
[1625125551643,2.59084034,2158.8,2158.4,6.03819693]
[1625125551744,0.02854034,2158.8,2158.4,6.03819693]
[1625125552043,0.02893355,2158.6,2158.4,6.03819693]
[1625125552345,5.03854034,2158.8,2158.5,21.3]
[1625125552449,5.03854034,2158.8,2158.5,27.37791719]
[1625125552976,5.03854034,2158.8,2158.5,6.07791719]
[1625125553177,0.02854034,2158.8,2158.5,6.07791719]
[1625125553377,0.02854034,2158.8,2158.5,6.03791719]
[1625125553476,0.02854034,2158.8,2158.5,6.93791719]
[1625125554682,0.02854034,2158.8,2158.6,0.06]
[1625125555524,0.02822874,2159.0,2158.7,23.05]
[1625125555623,5.01618958,2159.2,2158.8,28.0]
[1625125555724,0.00618958,2159.2,2158.8,28.2]
[1625125555822,0.00618958,2159.2,2158.8,28.0]
[1625125555921,0.00618958,2159.2,2158.9,0.12]
[1625125556259,0.00618958,2159.2,2158.8,28.0]
[1625125556462,0.00618958,2159.2,2158.8,28.02822874]
[1625125556760,0.00618958,2159.2,2158.8,0.02822874]
[1625125557221,0.00618958,2159.2,2158.8,6.97331874]
[1625125557671,0.00618958,2159.2,2158.8,0.02822874]
[1625125557868,5.01,2159.1,2158.8,0.02822874]
[1625125558670,6.95233958,2159.2,2158.8,0.02822874]
[1625125558773,0.00618958,2159.2,2158.8,0.02822874]
[1625125559074,5.01,2159.1,2158.8,0.02822874]
[1625125559351,0.00618958,2159.2,2158.8,0.02822874]
[1625125560854,5.01,2159.1,2158.8,0.02822874]
[1625125562500,11.95646,2159.1,2158.8,0.02822874]
[1625125563305,8.40709827,2160.6,2158.8,0.02822874]
[1625125563402,38.0610433,2160.2,2160.0,29.21104925]
[1625125563503,8.55435978,2160.1,2160.0,29.21104925]
[1625125563607,12.01435978,2160.1,2160.0,29.21104925]
[1625125563703,25.9352851,2160.1,2160.0,29.21104925]
[1625125563849,31.7352851,2160.1,2160.0,25.09602527]
[1625125563947,31.7352851,2160.1,2160.0,9.55272527]
[1625125564050,28.2620572,2160.1,2160.0,9.55272527]
[1625125564248,30.56394585,2160.1,2160.0,9.55272527]
[1625125564454,34.03717375,2160.1,2160.0,9.55272527]
[1625125564750,49.03717375,2160.1,2160.0,9.55272527]
[1625125564949,28.05,2160.0,2159.2,0.02784364]
[1625125565050,3.47342,2159.6,2159.2,0.02784364]
[1625125565156,5.82827302,2159.5,2159.2,0.02784364]
[1625125565254,5.01,2159.4,2159.2,0.02784364]
[1625125565350,16.86,2159.3,2159.2,0.02784364]
[1625125565451,10.50953917,2159.3,2159.2,0.02784364]
[1625125565555,5.15,2159.3,2159.2,0.02784364]
[1625125565852,11.5,2159.3,2159.2,0.02784364]
[1625125566595,5.15,2159.3,2159.2,0.02784364]
[1625125566796,15.65,2159.2,2158.4,0.02893355]
[1625125566901,6.94754,2159.0,2158.5,6.03791719]
[1625125567048,16.20858586,2158.9,2158.5,6.03791719]
[1625125567150,21.21858586,2158.9,2158.5,6.03791719]
[1625125567246,5.45858586,2158.9,2158.5,6.03791719]
[1625125567646,9.1276,2159.0,2158.5,6.03791719]
[1625125567746,11.81,2158.9,2158.5,6.03791719]
[1625125567851,5.01,2158.9,2158.5,6.03791719]
[1625125568364,10.7,2158.8,2158.5,5.09468627]
[1625125568464,15.71,2158.8,2158.5,5.09468627]
[1625125568664,5.03854034,2158.8,2158.5,5.09468627]
[1625125571301,10.44298872,2158.8,2158.5,5.09468627]
[1625125571603,10.44298872,2158.8,2158.5,8.627e-05]
[1625125571718,33.06,2158.7,2158.4,0.02893355]
[1625125571819,28.05748745,2158.6,2158.2,0.02901217]
[1625125571904,5.01,2158.5,2158.2,0.02901217]
[1625125572006,5.01,2158.4,2158.2,0.02901217]
[1625125572104,5.13,2158.4,2158.2,0.02901217]
[1625125572205,20.46,2158.3,2158.2,0.02901217]
[1625125572512,20.58,2158.3,2158.2,0.02901217]
[1625125572703,5.13,2158.3,2158.2,0.02901217]
[1625125572936,10.18,2158.3,2158.2,0.02901217]
[1625125573215,5.01,2158.3,2158.2,0.02901217]
[1625125573516,7.08985,2158.4,2158.2,0.02901217]
[1625125574715,20.16,2158.3,2158.2,0.02901217]
[1625125574816,5.01,2158.3,2158.2,0.02901217]
[1625125575242,5.15,2158.3,2158.2,0.02901217]
[1625125575745,5.19,2158.3,2158.2,0.02901217]
[1625125576143,5.15,2158.3,2158.2,0.02901217]
[1625125577148,0.14,2158.3,2158.2,0.02901217]
[1625125577384,0.02893355,2158.6,2158.2,0.02901217]
[1625125578930,6.97679355,2158.6,2158.2,0.02901217]
[1625125581488,0.02893355,2158.6,2158.2,0.02901217]
[1625125581690,0.02893355,2158.6,2158.3,0.1]
[1625125581905,0.02893355,2158.6,2158.2,0.02901217]
[1625125583212,0.02854034,2158.8,2158.3,19.15]
[1625125584150,0.02854034,2158.8,2158.4,0.02893355]
[1625125584237,0.02854034,2158.8,2158.4,0.12893355]
[1625125585240,6.97576034,2158.8,2158.4,0.02893355]
[1625125587181,0.02854034,2158.8,2158.4,0.02893355]
[1625125588178,6.97580034,2158.8,2158.4,0.02893355]
[1625125588778,0.02854034,2158.8,2158.4,0.02893355]
[1625125589589,6.97599034,2158.8,2158.4,0.02893355]
[1625125590089,0.02854034,2158.8,2158.5,0.06]
[1625125590191,0.02854034,2158.8,2158.4,0.02893355]
[1625125590897,3.35334034,2158.8,2158.4,0.02893355]
[1625125591245,3.49334034,2158.8,2158.4,0.02893355]
[1625125591880,10.44064034,2158.8,2158.4,0.02893355]
[1625125592682,5.01,2158.6,2158.4,0.02893355]
[1625125593186,11.95805,2158.6,2158.4,0.02893355]
[1625125593381,18.14,2158.5,2158.4,0.02893355]
[1625125593684,18.2,2158.5,2158.4,0.02893355]
[1625125594201,18.14,2158.5,2158.4,0.02893355]
[1625125594406,25.089,2158.5,2158.4,0.02893355]
[1625125594505,30.70089213,2158.5,2158.4,0.02893355]
[1625125594606,25.089,2158.5,2158.4,0.02893355]
[1625125594826,25.209,2158.5,2158.4,0.02893355]
[1625125594912,25.209,2158.5,2158.4,3.355e-05]
[1625125595710,30.92398812,2158.5,2158.4,3.355e-05]
[1625125595811,30.92398812,2158.5,2157.6,0.02686595]
[1625125595812,28.0,2158.4,2157.6,0.02686595]
[1625125595919,28.0,2158.3,2157.6,0.02686595]
[1625125596015,0.29516243,2158.1,2157.6,0.02686595]
[1625125596194,6.68601247,2157.9,2157.1,2.10555785]
[1625125596344,5.01,2157.7,2157.0,0.00715545]
[1625125596441,6.25653463,2157.6,2157.0,0.00715545]
[1625125596542,11.40653463,2157.6,2157.0,0.00715545]
[1625125596646,0.0190433,2157.4,2157.0,0.00715545]
[1625125596746,5.0290433,2157.4,2157.0,0.00715545]
[1625125596842,5.72604736,2157.3,2157.0,0.00715545]
[1625125596942,14.87566144,2157.3,2157.0,0.00715545]
[1625125597041,14.91566144,2157.3,2157.0,0.00715545]
[1625125597243,14.87566144,2157.3,2157.0,0.00715545]
[1625125597543,13.06,2157.1,2157.0,0.00715545]
[1625125597644,3.0579,2157.1,2157.0,0.00715545]
[1625125597743,3.1979,2157.1,2157.0,0.00715545]
[1625125597944,8.65465205,2157.1,2157.0,0.00715545]
[1625125598044,8.66688857,2157.1,2157.0,0.00715545]
[1625125598415,3.1979,2157.1,2157.0,0.00715545]
[1625125598499,10.21155,2157.1,2157.0,0.00715545]
[1625125598699,7.46645963,2157.1,2157.0,0.00715545]
[1625125599601,12.47645963,2157.1,2157.0,0.00715545]
[1625125601051,5.52280963,2157.1,2157.0,0.00715545]
[1625125601250,5.46280963,2157.1,2157.0,0.00715545]
[1625125601517,10.97547207,2157.1,2157.0,0.00715545]
[1625125601617,5.46280963,2157.1,2157.0,0.00715545]
[1625125602021,12.41645963,2157.1,2157.0,0.00715545]
[1625125602116,7.40645963,2157.1,2157.0,0.00715545]
[1625125602515,12.85840779,2157.1,2157.0,0.00715545]
[1625125602619,20.85,2157.0,2156.4,0.0102469]
[1625125602774,5.01,2156.8,2156.4,0.0102469]
[1625125602911,10.93230181,2156.7,2156.4,0.0102469]
[1625125603009,2.0,2156.6,2156.4,0.0102469]
[1625125603108,18.81166911,2156.5,2156.4,0.0102469]
[1625125603207,12.41759911,2156.5,2156.4,0.0102469]
[1625125603310,12.59759911,2156.5,2156.4,0.0102469]
[1625125603407,19.09759911,2156.5,2156.4,0.0102469]
[1625125603614,12.59759911,2156.5,2156.4,0.0102469]
[1625125604010,16.59759911,2156.5,2156.4,0.0102469]
[1625125604109,24.59759911,2156.5,2156.4,0.0102469]
[1625125604216,29.45381377,2156.5,2156.4,0.0102469]
[1625125604314,28.0,2156.2,2154.9,10.4935]
[1625125604415,28.0,2156.2,2154.7,2.47547654]
[1625125604416,9.27734,2156.1,2154.7,2.47547654]
[1625125604516,0.01626844,2155.8,2154.7,2.53547654]
[1625125604612,5.03304707,2155.8,2154.7,2.53547654]
[1625125604714,0.00626239,2155.2,2154.7,2.4]
[1625125604816,4.25776239,2155.2,2154.3,11.01664533]
[1625125604909,9.86051189,2155.2,2154.3,11.01664533]
[1625125605009,9.8542495,2155.2,2154.3,10.8811]
[1625125605462,2.0,2155.0,2154.3,10.8811]
[1625125605564,2.0,2155.0,2154.3,11.82246869]
[1625125605681,2.0,2155.0,2154.3,10.8811]
[1625125605866,5.50716754,2154.9,2154.3,10.8811]
[1625125605963,2.0,2155.0,2154.2,0.00882066]
[1625125606067,5.60738057,2154.9,2154.2,0.00882066]
[1625125606167,10.61738057,2154.9,2154.8,0.00626239]
[1625125606363,5.01,2154.9,2154.8,0.00626239]
[1625125606563,2.0,2154.9,2154.8,0.00626239]
[1625125606965,7.10570029,2154.9,2154.8,0.00626239]
[1625125607165,14.06589029,2154.9,2154.8,0.00626239]
[1625125607264,8.52789003,2154.9,2154.8,0.00626239]
[1625125607418,23.37163186,2154.9,2154.8,0.00626239]
[1625125607518,23.51163186,2154.9,2154.8,0.00626239]
[1625125607620,23.63163186,2154.9,2154.8,0.00626239]
[1625125608120,26.08907732,2154.9,2154.8,0.00626239]
[1625125608320,26.39839569,2154.9,2154.8,0.00626239]
[1625125608422,41.39839569,2154.9,2154.8,0.00626239]
[1625125608519,26.39839569,2154.9,2154.8,0.00626239]
[1625125608918,34.39839569,2154.9,2154.8,0.00626239]
[1625125609023,52.85839569,2154.9,2154.8,0.00626239]
[1625125609122,37.85839569,2154.9,2154.8,0.00626239]
[1625125609425,41.85839569,2154.9,2154.8,0.00626239]
[1625125609781,56.85839569,2154.9,2154.8,0.00626239]
[1625125610987,59.2559603,2154.9,2154.8,0.00626239]
[1625125612419,35.1059603,2154.9,2154.8,0.00626239]
[1625125612530,17.1029001,2154.9,2154.8,0.00626239]
[1625125612622,12.24789003,2154.9,2154.8,0.00626239]
[1625125612819,12.12789003,2154.9,2154.8,0.00626239]
[1625125613168,10.56019,2154.9,2154.8,0.00626239]
[1625125613268,7.10019,2154.9,2154.8,0.00626239]
[1625125613772,4.35258412,2154.9,2154.8,0.00626239]
[1625125614170,10.0736134,2154.9,2154.8,0.00626239]
[1625125614276,19.6886134,2154.9,2154.8,0.00626239]
[1625125614624,19.7686134,2154.9,2154.8,0.00626239]
[1625125615129,30.96107136,2154.9,2154.8,0.00626239]
[1625125615230,32.35537136,2154.9,2154.8,0.00626239]
[1625125615329,47.26537136,2154.9,2154.8,0.00626239]
[1625125615431,64.55732481,2154.9,2154.8,2.39e-06]
[1625125615726,60.64197984,2154.9,2154.8,2.39e-06]
[1625125615826,72.25066984,2154.9,2154.8,2.39e-06]
[1625125616594,82.99086984,2154.9,2154.8,2.39e-06]
[1625125616793,92.99866984,2154.9,2154.8,2.39e-06]
[1625125616895,84.99866984,2154.9,2154.8,2.39e-06]
[1625125617198,69.99866984,2154.9,2154.8,2.39e-06]
[1625125618199,77.99866984,2154.9,2154.8,2.39e-06]
[1625125618500,97.99866984,2154.9,2154.8,2.39e-06]
[1625125618601,77.99866984,2154.9,2154.8,2.39e-06]
[1625125619545,81.62644199,2154.9,2154.8,2.39e-06]
[1625125621669,62.17644199,2154.9,2154.8,2.39e-06]
[1625125621772,48.15267356,2154.9,2154.8,2.39e-06]
[1625125621889,25.29649,2154.9,2154.8,2.39e-06]
[1625125621974,21.83649,2154.9,2154.8,2.39e-06]
[1625125622080,27.37688772,2154.9,2154.8,2.39e-06]
[1625125622172,31.00463457,2154.9,2154.8,2.39e-06]
[1625125622466,27.37688772,2154.9,2154.8,2.39e-06]
[1625125622667,21.83649,2154.9,2154.8,2.39e-06]
[1625125622770,0.22,2154.9,2154.8,2.39e-06]
[1625125622974,10.3623,2155.7,2154.8,2.39e-06]
[1625125623072,0.14,2155.5,2154.8,2.39e-06]
[1625125623172,28.19006406,2155.8,2154.8,2.39e-06]
[1625125623270,11.74925863,2155.8,2154.8,2.39e-06]
[1625125623368,17.28374725,2155.8,2154.8,2.39e-06]
[1625125623468,11.74925863,2155.8,2154.8,5.01000239]
[1625125623568,0.14677863,2155.8,2154.8,5.01000239]
[1625125623670,0.14677863,2155.8,2154.8,4.9610631]
[1625125623769,0.14677863,2155.8,2154.9,0.00758257]
[1625125623927,0.14677863,2155.8,2154.8,4.9610631]
[1625125623928,0.14677863,2155.8,2154.8,4.97939795]
[1625125624029,0.00626239,2155.2,2154.8,4.97939795]
[1625125624126,0.00626239,2155.2,2154.8,4.9610631]
[1625125624429,2.39e-06,2155.2,2154.9,0.16]
[1625125624627,2.39e-06,2155.2,2154.9,2.512]
[1625125624828,2.39e-06,2155.2,2154.9,5.11682372]
[1625125624929,2.39e-06,2155.2,2155.0,6.95615]
[1625125625031,2.39e-06,2155.2,2155.0,10.45975]
[1625125625136,2.39e-06,2155.2,2155.1,5.4535576]
[1625125625328,2.39e-06,2155.2,2155.1,8.05838132]
[1625125625433,8.63e-06,2155.8,2155.1,9.72828132]
[1625125625531,8.63e-06,2155.8,2155.2,0.02622995]
[1625125625629,8.63e-06,2155.8,2155.2,6.66534266]
[1625125625727,8.63e-06,2155.8,2155.3,3.816774]
[1625125625832,8.63e-06,2155.8,2155.4,0.14]
[1625125625931,8.63e-06,2155.8,2155.7,0.29729508]
[1625125626029,8.63e-06,2155.8,2155.7,5.12559508]
[1625125626222,8.63e-06,2155.8,2155.7,6.87859508]
[1625125626410,8.63e-06,2155.8,2155.7,7.01859508]
[1625125626611,8.63e-06,2155.8,2155.7,9.61659508]
[1625125626913,1.482e-05,2156.2,2155.8,3.47628]
[1625125627115,1.482e-05,2156.2,2155.9,0.14]
[1625125627313,1.482e-05,2156.2,2156.0,5.01]
[1625125627412,1.482e-05,2156.2,2156.0,5.07]
[1625125627715,1.482e-05,2156.2,2156.0,0.06]
[1625125628216,1.482e-05,2156.2,2155.9,0.14]
[1625125628620,1.482e-05,2156.2,2155.9,5.15]
[1625125628821,1.482e-05,2156.2,2155.9,2.576]
[1625125629123,1.482e-05,2156.2,2155.9,0.14]
[1625125629419,1.482e-05,2156.2,2155.7,2.382]
[1625125629520,1.482e-05,2156.2,2155.8,5.01]
[1625125632513,1.482e-05,2156.2,2155.9,2.376]
[1625125632813,1.482e-05,2156.2,2155.8,5.01]
[1625125633314,1.482e-05,2156.2,2155.9,2.34]
[1625125633416,1.482e-05,2156.2,2155.9,7.35]
[1625125633616,1.482e-05,2156.2,2155.9,13.01]
[1625125633715,1.482e-05,2156.2,2156.0,0.06]
[1625125633826,1.482e-05,2156.2,2156.1,3.9]
[1625125635166,11.38830107,2156.9,2156.1,3.9]
[1625125635266,12.86230107,2156.9,2156.1,3.9]
[1625125635462,0.2,2156.8,2156.1,3.9]
[1625125635674,0.14,2156.7,2156.1,3.9]
[1625125635767,0.14,2156.7,2155.7,3.0]
[1625125635864,0.14,2156.7,2155.6,14.8219078]
[1625125635965,6.95591,2156.4,2155.6,14.8219078]
[1625125636067,6.95591,2156.4,2156.0,0.00719619]
[1625125636163,5.34917518,2156.3,2156.0,0.00719619]
[1625125636268,5.40102268,2156.3,2156.0,0.00719619]
[1625125636363,12.15,2156.2,2156.1,0.9]
[1625125636665,0.2,2156.2,2156.1,0.9]
[1625125637068,0.8995,2156.3,2156.1,0.9]
[1625125637524,10.61,2156.2,2156.1,0.9]
[1625125637620,5.01,2156.2,2156.1,0.9]
[1625125637821,5.15,2156.2,2156.1,0.9]
[1625125638620,0.14,2156.2,2156.1,0.9]
[1625125638822,5.49889652,2156.2,2156.1,0.9]
[1625125638923,9.59779652,2156.2,2156.1,0.9]
[1625125639027,23.95,2156.1,2155.6,4.61988643]
[1625125639127,5.90005169,2156.0,2155.6,4.61988643]
[1625125639224,6.04899541,2156.0,2155.6,4.61988643]
[1625125639320,6.9581,2155.9,2155.6,4.61988643]
[1625125639427,5.78254801,2155.8,2155.6,4.61988643]
[1625125639525,20.45,2155.7,2155.2,2.41988643]
[1625125639689,5.64479549,2155.6,2155.3,2.77749903]
[1625125639994,0.14,2155.5,2155.3,2.77749903]
[1625125640093,15.51,2155.4,2155.3,2.77749903]
[1625125640194,5.15,2155.4,2155.3,2.77749903]
[1625125640294,11.34607801,2155.4,2155.3,2.77749903]
[1625125640591,11.34607801,2155.4,2154.2,9.96362066]
[1625125640693,11.34607801,2155.4,2154.2,0.00882066]
[1625125640694,6.95999,2155.2,2154.2,0.00882066]
[1625125640791,10.21859,2155.2,2154.2,0.00882066]
[1625125640893,18.17712314,2155.1,2154.2,0.00882066]
[1625125641191,18.31712314,2155.1,2154.2,0.00882066]
[1625125641391,18.51712314,2155.1,2154.2,0.00882066]
[1625125642025,30.16712314,2155.1,2154.2,0.00882066]
[1625125642127,18.51712314,2155.1,2154.2,0.00882066]
[1625125642828,26.51712314,2155.1,2155.0,2.39e-06]
[1625125643031,29.97712314,2155.1,2155.0,2.39e-06]
[1625125643127,29.97712314,2155.1,2154.2,0.00882066]
[1625125643128,30.26947072,2155.1,2154.2,0.00882066]
[1625125643234,5.01,2154.9,2154.2,0.00882066]
[1625125643324,10.83675328,2154.8,2154.2,0.00882066]
[1625125643479,5.01,2154.6,2154.2,0.00882066]
[1625125643579,6.58368688,2154.5,2154.2,0.00882066]
[1625125643678,6.72368688,2154.5,2154.2,0.00882066]
[1625125643778,32.96,2154.3,2154.2,0.00882066]
[1625125643976,32.96,2154.3,2154.2,6.6e-07]
[1625125643977,41.1,2154.3,2154.2,6.6e-07]
[1625125644324,41.3,2154.3,2154.2,6.6e-07]
[1625125644425,41.60666171,2154.3,2154.2,6.6e-07]
[1625125644527,52.03193171,2154.3,2154.2,6.6e-07]
[1625125644629,53.34953171,2154.3,2154.2,6.6e-07]
[1625125644825,55.68078967,2154.3,2154.2,6.6e-07]
[1625125645230,47.68078967,2154.3,2154.2,6.6e-07]
[1625125645326,45.34953171,2154.3,2154.2,6.6e-07]
[1625125645630,43.72527,2154.3,2154.2,6.6e-07]
[1625125645827,43.72527,2154.3,2154.2,0.90000066]
[1625125645828,15.77527,2154.3,2154.2,0.90000066]
[1625125645928,21.7196456,2154.3,2154.2,0.90000066]
[1625125646230,15.77527,2154.3,2154.2,0.00010066]
[1625125646691,21.05322927,2154.3,2154.2,0.00010066]
[1625125647192,16.04322927,2154.3,2154.2,0.00010066]
[1625125647501,10.76527,2154.3,2154.2,0.00010066]
[1625125647790,16.17252212,2154.3,2154.2,0.00010066]
[1625125647892,16.45672917,2154.3,2154.2,0.00010066]
[1625125647991,10.76527,2154.3,2154.2,0.00010066]
[1625125648492,16.2032319,2154.3,2154.2,0.00010066]
[1625125648976,32.8532319,2154.3,2154.2,0.00010066]
[1625125649570,43.9570319,2154.3,2154.2,0.00010066]
[1625125650074,13.86907,2154.3,2154.2,0.00010066]
[1625125650185,10.76527,2154.3,2154.2,4.59550066]
[1625125650284,7.16527,2154.3,2154.2,4.59550066]
[1625125650381,0.00882066,2154.4,2154.2,4.73550066]
[1625125650683,0.00882066,2154.4,2154.3,3.46]
[1625125650776,0.00882066,2154.4,2154.3,5.1348]
[1625125650777,6.6e-07,2154.4,2154.3,5.1348]
[1625125650928,6.6e-07,2154.4,2154.3,5.58445464]
[1625125651026,6.6e-07,2154.4,2154.3,9.61250151]
[1625125651129,6.6e-07,2154.4,2154.3,10.31370151]
[1625125651231,6.6e-07,2154.4,2154.3,29.10980232]
[1625125651329,6.6e-07,2154.4,2154.3,27.46660232]
[1625125651430,6.6e-07,2154.4,2154.3,29.30480232]
[1625125651532,0.00626239,2155.2,2154.3,29.30480232]
[1625125651634,2.39e-06,2155.2,2154.6,3.47807]
[1625125651731,2.39e-06,2155.2,2155.1,3.46]
[1625125651831,2.39e-06,2155.2,2155.1,6.7045]
[1625125652031,2.39e-06,2155.2,2155.1,14.9045]
[1625125652232,2.39e-06,2155.2,2155.1,17.3405]
[1625125652432,2.39e-06,2155.2,2155.1,17.4805]
[1625125652529,2.39e-06,2155.2,2155.1,17.4445]
[1625125652833,2.39e-06,2155.2,2155.1,7.0445]
[1625125653029,2.39e-06,2155.2,2155.1,15.0445]
[1625125653368,2.39e-06,2155.2,2155.1,17.4865]
[1625125653668,12.96397721,2156.2,2155.2,27.95]
[1625125653770,12.96397721,2156.2,2155.4,5.01]
[1625125653868,12.96397721,2156.2,2155.5,5.01]
[1625125653967,12.96397721,2156.2,2155.5,5.15]
[1625125654269,12.96397721,2156.2,2155.5,0.14]
[1625125654669,12.96397721,2156.2,2156.0,0.00719619]
[1625125654770,13.96,2156.1,2156.0,0.00719619]
[1625125654868,5.01,2156.1,2156.0,0.00719619]
[1625125655540,14.72751699,2156.1,2156.0,0.00719619]
[1625125655642,14.72751699,2156.1,2156.0,6.19e-06]
[1625125655744,20.1178,2156.1,2156.0,6.19e-06]
[1625125655842,28.03932623,2156.1,2156.0,6.19e-06]
[1625125655942,28.32823185,2156.1,2156.0,6.19e-06]
[1625125656742,5.01,2156.0,2155.6,1.482e-05]
[1625125656941,3.46,2155.7,2155.6,1.482e-05]
[1625125657046,10.47236126,2155.7,2155.6,1.482e-05]
[1625125657241,10.61236126,2155.7,2155.6,1.482e-05]
[1625125657343,18.61236126,2155.7,2155.6,1.482e-05]
[1625125657446,22.46001922,2155.7,2155.6,1.482e-05]
[1625125657720,24.72870999,2155.7,2155.6,1.482e-05]
[1625125658321,27.95,2155.6,2154.5,2.6]
[1625125658420,6.96259,2155.1,2154.5,2.6]
[1625125658521,5.89505425,2155.0,2154.2,0.00882066]
[1625125658617,5.01,2154.8,2154.2,0.00882066]
[1625125658719,0.14,2154.7,2154.2,0.00882066]
[1625125658819,5.15,2154.7,2154.2,0.00882066]
[1625125658919,5.94848515,2154.6,2154.2,0.00882066]
[1625125659027,5.01,2154.5,2154.2,0.00882066]
[1625125659121,5.01,2154.4,2154.2,0.00882066]
[1625125659224,10.73320824,2154.4,2154.2,0.00882066]
[1625125659323,20.43509253,2154.3,2154.2,0.00882066]
[1625125659425,5.68509253,2154.3,2154.2,0.00882066]
[1625125660370,5.76509253,2154.3,2154.2,0.00882066]
[1625125660771,20.56509253,2154.3,2154.2,0.00882066]
[1625125661829,29.26509253,2154.3,2154.2,0.00882066]
[1625125662274,37.26509253,2154.3,2154.2,0.00882066]
[1625125662372,29.26509253,2154.3,2154.2,0.00882066]
[1625125662573,20.56509253,2154.3,2154.2,0.00882066]
[1625125662874,23.97659253,2154.3,2154.2,6.6e-07]
[1625125662973,31.97659253,2154.3,2154.2,6.6e-07]
[1625125663173,23.97659253,2154.3,2154.2,6.6e-07]
[1625125663273,27.43659253,2154.3,2152.6,3.45000066]
[1625125663374,5.01,2154.1,2152.5,10.3564]
[1625125663474,6.48346832,2154.0,2152.5,10.3564]
[1625125663575,6.62346832,2154.0,2152.5,10.3564]
[1625125663673,5.01,2153.8,2152.5,10.3564]
[1625125663774,0.04950531,2153.7,2152.4,0.28865038]
[1625125663875,5.62286311,2153.7,2152.4,0.28865038]
[1625125663977,0.14,2153.7,2152.5,9.28654]
[1625125664179,0.14,2153.7,2152.5,17.40654]
[1625125664276,0.14,2153.7,2152.7,4.86]
[1625125664740,0.14,2153.7,2152.5,9.28654]
[1625125666239,0.14,2153.7,2152.7,6.96488]
[1625125666542,5.15,2153.7,2152.7,6.96488]
[1625125666690,5.01,2153.9,2152.9,5.01]
[1625125666793,0.14,2153.9,2153.0,5.01]
[1625125666890,0.14,2153.9,2152.9,5.01]
[1625125666990,0.00882066,2154.4,2153.0,0.06]
[1625125667090,0.14,2154.2,2153.0,5.07]
[1625125667197,0.14,2154.2,2153.0,6.988]
[1625125667293,0.14,2154.2,2153.1,6.7482557]
[1625125667391,0.14,2154.2,2153.4,6.96234]
[1625125667692,0.14,2154.2,2153.2,4.3932]
[1625125667797,0.14,2154.2,2153.5,2.7798206]
[1625125669434,5.15,2154.5,2153.5,2.7798206]
[1625125669530,5.15,2154.5,2153.5,7.3908206]
[1625125669632,5.15,2154.5,2153.6,2.77969152]
[1625125669729,0.14,2154.5,2153.6,2.77969152]
[1625125669833,1.10970093,2155.3,2153.6,2.77969152]
[1625125669932,6.96105,2155.2,2153.8,5.01]
[1625125670034,0.14,2155.0,2153.8,5.01]
[1625125670132,0.14,2155.0,2153.9,2.77930436]
[1625125670434,0.14,2155.0,2154.1,2.3]
[1625125670535,0.14,2155.0,2154.2,2.77891731]
[1625125670640,6.96105,2155.2,2154.2,2.77891731]
[1625125670835,0.14,2155.3,2154.2,2.77891731]
[1625125672580,7.10041,2155.3,2154.2,2.77891731]
[1625125672980,5.01,2155.1,2154.2,2.77891731]
[1625125673562,5.01,2155.1,2154.2,9.73875731]
[1625125673659,0.14,2155.3,2154.4,5.01]
[1625125673857,0.14,2155.3,2154.5,2.77853036]
[1625125674559,0.09,2155.3,2154.5,2.77853036]
[1625125676180,5.1,2155.3,2154.5,2.77853036]
[1625125676281,5.1,2155.3,2154.1,2.3]
[1625125676383,0.09,2155.3,2154.1,2.3]
[1625125676480,5.01,2155.1,2154.1,2.3]
[1625125676779,0.09,2155.3,2154.1,10.3]
[1625125676881,5.1,2155.3,2154.1,10.3]
[1625125677493,5.1,2155.3,2154.3,5.01]
[1625125677494,0.09,2155.3,2154.3,5.01]